bitfinex-derivatives/quotes_ETHF0:USTF0_20250621
["timestamp","ask_amount","ask_price","bid_price","bid_amount"]
[1750473420673,1.23786,2423.3,2423.2,7.73589]
[1750473421279,1.23782,2423.4,2423.2,7.73589]
[1750473423478,1.23784,2423.3,2423.2,6.498]
[1750473423775,1.23782,2423.4,2423.2,7.73489]
[1750473424375,3.97517,2423.5,2423.3,1.23783]
[1750473424578,3.97517,2423.5,2423.4,6.497]
[1750473424779,5.31898288,2423.5,2423.4,6.497]
[1750473427585,2.58154288,2423.5,2423.4,6.497]
[1750473427886,3.28974288,2423.5,2423.4,6.497]
[1750473430186,1.23781,2423.4,2423.1,1.09593802]
[1750473430386,1.23781,2423.4,2423.2,7.73484]
[1750473430886,1.23781,2423.4,2423.3,1.23784]
[1750473431085,2.58349956,2423.4,2423.3,1.23784]
[1750473431589,2.58349956,2423.4,2423.2,7.73486]
[1750473431783,1.23781,2423.4,2423.2,7.73486]
[1750473432387,4.44561,2423.4,2423.2,7.73486]
[1750473432687,3.2078,2423.4,2423.1,4.9005192]
[1750473432891,1.23784,2423.3,2423.2,6.497]
[1750473433583,1.23784,2423.3,2423.2,8.88638118]
[1750473433785,1.89154,2423.3,2423.2,8.88638118]
[1750473433982,1.89154,2423.3,2423.2,2.38938118]
[1750473434180,1.89154,2423.3,2423.2,8.88638118]
[1750473434581,1.89154,2423.3,2423.2,6.497]
[1750473434983,1.23789,2423.2,2423.1,2.33385802]
[1750473435184,1.23789,2423.2,2423.1,8.83085802]
[1750473435987,1.23799,2423.0,2422.9,3.8983]
[1750473436293,1.23795,2423.1,2422.9,11.0742]
[1750473436487,1.23795,2423.1,2422.9,12.3992]
[1750473436683,1.23795,2423.1,2423.0,1.23799]
[1750473438189,1.23795,2423.1,2423.0,6.497]
[1750473438380,1.23795,2423.1,2423.0,7.73499]
[1750473440391,1.23795,2423.1,2423.0,1.23799]
[1750473440585,1.23795,2423.1,2423.0,7.73499]
[1750473440992,1.23795,2423.1,2423.0,1.23799]
[1750473441189,1.23799,2423.0,2422.9,0.6789]
[1750473441400,1.23812,2422.8,2422.6,0.6552]
[1750473441696,1.23808,2422.9,2422.6,3.44303083]
[1750473441886,1.34252639,2422.8,2422.7,1.23813]
[1750473442088,1.23808,2422.9,2422.6,5.99619083]
[1750473442597,1.23808,2422.9,2422.7,1.23814]
[1750473442788,1.23808,2422.9,2422.7,2.55314]
[1750473443188,1.23808,2422.9,2422.8,2.38938118]
[1750473443389,2.58020779,2422.9,2422.8,2.38938118]
[1750473444495,1.23808,2422.9,2422.8,2.38938118]
[1750473447190,0.6628,2423.2,2422.8,2.38938118]
[1750473447387,1.88309,2423.2,2423.1,2.38938118]
[1750473447693,1.23799,2423.0,2422.9,9.57818118]
[1750473448404,1.23799,2423.0,2422.9,10.91028118]
[1750473449306,1.23796,2423.1,2423.0,1.23799]
[1750473449487,2.57972542,2423.1,2423.0,1.3321]
[1750473449691,2.57972542,2423.1,2423.0,1.40057599]
[1750473450793,2.57972542,2423.1,2423.0,1.3321]
[1750473451103,1.34176542,2423.1,2423.0,2.57009]
[1750473451301,1.23791,2423.2,2423.1,1.23794]
[1750473451509,2.57975173,2423.2,2423.1,5.67842118]
[1750473451710,3.2078,2423.3,2423.1,5.67842118]
[1750473451999,3.2078,2423.3,2423.2,7.8898]
[1750473452000,4.44567,2423.3,2423.2,7.8898]
[1750473452199,2.57971761,2423.3,2423.2,8.5593]
[1750473453205,2.57953959,2423.3,2423.2,8.5593]
[1750473454202,2.57950959,2423.3,2423.2,8.5593]
[1750473454606,1.23784,2423.3,2423.2,9.79719]
[1750473454797,1.23784,2423.3,2423.2,8.5593]
[1750473455505,1.23784,2423.3,2423.2,9.79719]
[1750473456400,2.57967373,2423.3,2423.2,9.79719]
[1750473456811,1.34183373,2423.3,2423.2,9.79719]
[1750473457498,2.57967373,2423.3,2423.2,8.5593]
[1750473458506,1.23784,2423.3,2423.2,8.5593]
[1750473458902,2.57930989,2423.3,2423.2,9.79719]
[1750473459507,5.78710989,2423.3,2423.2,7.1625]
[1750473459708,2.57930989,2423.3,2423.2,7.1625]
[1750473460206,2.57930989,2423.3,2423.2,9.55188118]
[1750473460509,2.57930989,2423.3,2423.2,10.95908118]
[1750473461005,2.57930989,2423.3,2423.2,4.46608118]
[1750473461204,2.57930989,2423.3,2423.2,10.95908118]
[1750473462406,5.78710989,2423.3,2423.2,0.6695]
[1750473462606,1.23789,2423.2,2423.1,0.6543]
[1750473462804,3.25095989,2423.2,2423.1,7.1473]
[1750473463308,3.25095989,2423.2,2423.1,0.6543]
[1750473463610,3.25095989,2423.2,2423.1,7.1473]
[1750473463809,3.25095989,2423.2,2423.1,0.6543]
[1750473464008,3.25095989,2423.2,2423.1,7.1473]
[1750473464911,3.25095989,2423.2,2423.1,6.493]
[1750473465706,3.25095989,2423.2,2423.1,8.88238118]
[1750473465707,2.57935989,2423.2,2423.1,8.88238118]
[1750473466006,2.57935989,2423.2,2423.1,10.27858118]
[1750473466511,0.6878,2423.7,2423.1,10.27858118]
[1750473466713,1.34239242,2423.6,2423.3,2.38938118]
[1750473467012,2.58012242,2423.5,2423.4,6.493]
[1750473467214,2.58012242,2423.5,2423.4,7.1652]
[1750473467515,2.57991571,2423.5,2423.4,7.1652]
[1750473469317,1.23773,2423.5,2423.4,7.1652]
[1750473472409,1.23773,2423.5,2423.4,6.493]
[1750473474121,3.8818673,2423.5,2423.4,6.493]
[1750473474415,3.8818673,2423.5,2423.2,0.6784]
[1750473474416,1.23784,2423.3,2423.2,0.6784]
[1750473474608,4.44564,2423.3,2423.2,7.1714]
[1750473475011,1.23784,2423.3,2423.2,7.1714]
[1750473476610,1.23784,2423.3,2423.2,0.6784]
[1750473476809,1.23784,2423.3,2423.2,7.1704]
[1750473480521,1.23784,2423.3,2423.2,0.6784]
[1750473480821,1.23784,2423.3,2423.2,7.1664]
[1750473481117,1.23784,2423.3,2423.2,0.6784]
[1750473481318,1.23789,2423.2,2423.1,3.09068118]
[1750473481519,1.23789,2423.2,2423.1,9.57868118]
[1750473482122,1.23789,2423.2,2423.1,7.1893]
[1750473482324,1.23794,2423.1,2423.0,0.6686]
[1750473482526,1.23809,2422.9,2422.7,4.31201118]
[1750473482822,1.23809,2422.9,2422.8,6.488]
[1750473483023,1.23809,2422.8,2422.7,5.08268118]
[1750473483220,1.23809,2422.8,2422.7,12.80882118]
[1750473483425,1.23807,2422.9,2422.7,12.80882118]
[1750473483625,1.23809,2422.8,2422.7,12.80882118]
[1750473483828,1.23808,2422.9,2422.7,12.80882118]
[1750473484128,1.23809,2422.8,2422.7,12.80882118]
[1750473484333,1.23807,2422.9,2422.7,12.80882118]
[1750473485627,1.23809,2422.8,2422.7,6.32082118]
[1750473485828,1.23809,2422.8,2422.7,12.80982118]
[1750473486728,1.23809,2422.8,2422.7,11.57168118]
[1750473488320,1.23809,2422.8,2422.7,7.1576]
[1750473488729,3.8583,2423.0,2422.6,0.39844965]
[1750473488730,1.23814,2422.7,2422.6,0.39844965]
[1750473488922,5.08834,2422.7,2422.6,6.489]
[1750473490332,5.08834,2422.7,2422.6,6.8730432]
[1750473491134,1.88054,2422.7,2422.6,7.5441432]
[1750473497239,1.23814,2422.7,2422.6,7.5441432]
[1750473499342,1.23814,2422.7,2422.6,7.61261919]
[1750473504240,1.23813,2422.8,2422.6,8.85078919]
[1750473504540,1.23809,2422.8,2422.7,2.38938118]
[1750473511647,1.23814,2422.7,2422.6,1.7127432]
[1750473511836,1.23814,2422.7,2422.6,8.1997432]
[1750473512346,1.23814,2422.7,2422.6,1.7127432]
[1750473512644,1.23814,2422.7,2422.6,6.8710432]
[1750473513540,2.57862188,2422.7,2422.6,6.8710432]
[1750473514441,2.57862188,2422.7,2422.6,0.3840432]
[1750473514648,1.23819,2422.6,2422.5,8.87638118]
[1750473514834,1.89539,2422.6,2422.5,8.87638118]
[1750473515845,1.89539,2422.6,2422.5,9.2558521]
[1750473517742,1.23835,2422.3,2422.2,0.7084]
[1750473518250,1.23832,2422.4,2422.2,0.7084]
[1750473518451,1.23832,2422.4,2422.3,2.38938118]
[1750473518753,1.23827,2422.5,2422.3,3.62771118]
[1750473518945,1.2383,2422.4,2422.3,3.79848118]
[1750473519151,1.2383,2422.4,2422.3,10.67360775]
[1750473529557,1.2383,2422.4,2422.3,11.91195775]
[1750473529746,1.2383,2422.4,2422.3,11.98043374]
[1750473532150,1.2383,2422.4,2422.3,11.39288374]
[1750473532759,1.2383,2422.4,2422.3,0.06847599]
[1750473532760,5.78841895,2422.4,2422.3,0.06847599]
[1750473533255,7.80421895,2422.4,2422.3,0.06847599]
[1750473534260,6.44891895,2422.4,2422.3,0.06847599]
[1750473537163,3.24111895,2422.4,2422.3,0.06847599]
[1750473538962,3.24160773,2422.4,2422.3,0.06847599]
[1750473540260,1.2383,2422.4,2422.3,0.06847599]
[1750473540757,1.2383,2422.4,2422.3,1.47987599]
[1750473540957,1.23828,2422.5,2422.3,2.71822599]
[1750473541159,1.2383,2422.4,2422.3,1.47987599]
[1750473543671,1.2383,2422.4,2422.3,2.71822599]
[1750473544467,1.2383,2422.4,2422.3,1.47987599]
[1750473547469,3.865,2422.6,2422.3,1.47987599]
[1750473547670,3.865,2422.6,2422.4,2.38938118]
[1750473547671,2.58253464,2422.5,2422.4,2.38938118]
[1750473547970,2.58253464,2422.5,2422.4,3.74068118]
[1750473548371,2.58253464,2422.5,2422.4,10.22268118]
[1750473549571,2.58253464,2422.5,2422.4,6.482]
[1750473558087,3.0800136,2422.9,2422.7,1.23812]
[1750473558294,1.23806,2422.9,2422.7,10.10950118]
[1750473558488,1.23806,2422.9,2422.8,0.6428]
[1750473569696,1.23806,2422.9,2422.8,3.8506]
[1750473571699,1.23806,2422.9,2422.8,0.6428]
[1750473573594,17.77591,2422.9,2422.0,3.2078]
[1750473573804,1.2386,2421.8,2421.7,0.6455]
[1750473576503,1.3293,2421.7,2421.1,8.86338118]
[1750473576691,1.3293,2421.7,2421.3,2.38938118]
[1750473576692,1.23883,2421.4,2421.3,2.38938118]
[1750473577191,1.23883,2421.4,2421.3,3.08208118]
[1750473579802,1.23883,2421.4,2421.3,0.6927]
[1750473582902,1.23891,2421.2,2421.1,6.474]
[1750473589703,1.23891,2421.2,2421.1,6.54247599]
[1750473591404,1.23891,2421.2,2421.1,0.06847599]
[1750473593413,1.23917,2420.7,2420.6,0.6671]
[1750473593608,11.30513,2421.2,2420.6,10.77270118]
[1750473593609,1.23915,2420.8,2420.6,10.77270118]
[1750473593808,1.23917,2420.7,2420.6,12.10510118]
[1750473594009,1.23917,2420.7,2420.6,10.86588118]
[1750473594309,3.2078,2420.9,2420.6,1.9995]
[1750473594611,1.23917,2420.7,2420.6,7.1441]
[1750473597409,3.2078,2422.0,2420.6,14.53348118]
[1750473597607,1.23896,2421.1,2421.0,3.2078]
[1750473598109,1.93706,2421.1,2421.0,3.2078]
[1750473602314,3.28238829,2421.1,2421.0,3.2078]
[1750473605024,3.28238829,2421.1,2421.0,3.27627599]
[1750473606321,1.93706,2421.1,2421.0,3.27627599]
[1750473607219,3.28560726,2421.1,2421.0,3.27627599]
[1750473609025,3.28560726,2421.1,2421.0,5.28507599]
[1750473610427,2.04664726,2421.1,2421.0,6.52408599]
[1750473610631,1.34854726,2421.1,2421.0,5.28507599]
[1750473610931,1.34854726,2421.1,2421.0,5.94577599]
[1750473611130,2.58750726,2421.1,2421.0,5.94577599]
[1750473613022,2.58750726,2421.1,2421.0,3.27627599]
[1750473613721,3.26890726,2421.1,2421.0,3.27627599]
[1750473617831,3.91880726,2421.1,2421.0,3.27627599]
[1750473627736,3.26890726,2421.1,2421.0,3.27627599]
[1750473638647,2.58750726,2421.1,2421.0,3.27627599]
[1750473639047,2.58750726,2421.1,2421.0,5.31797599]
[1750473647347,1.34854726,2421.1,2421.0,6.55698599]
[1750473647651,2.58750726,2421.1,2421.0,5.31797599]
[1750473647840,1.23896,2421.1,2421.0,5.31797599]
[1750473654162,1.23896,2421.1,2421.0,2.11017599]
[1750473654463,1.23896,2421.1,2421.0,5.31797599]
[1750473655158,2.58764242,2421.1,2421.0,5.31797599]
[1750473655465,1.23896,2421.1,2421.0,5.31797599]
[1750473655667,2.58765893,2421.1,2421.0,5.31797599]
[1750473656366,2.58765893,2421.1,2421.0,4.66777599]
[1750473658259,1.23896,2421.1,2421.0,4.66777599]
[1750473659065,1.23896,2421.1,2421.0,1.45997599]
[1750473659563,1.23896,2421.1,2421.0,4.66777599]
[1750473663366,1.23916,2420.8,2420.6,2.38938118]
[1750473663563,1.23916,2420.8,2420.7,3.2078]
[1750473664368,1.23916,2420.8,2420.7,4.44697]
[1750473664567,1.23916,2420.8,2420.7,5.82527]
[1750473665456,1.23916,2420.8,2420.7,3.2078]
[1750473666160,2.58839387,2420.8,2420.7,3.2078]
[1750473669170,2.58834387,2420.8,2420.7,3.2078]
[1750473670477,2.58834387,2420.8,2420.7,5.59718118]
[1750473673175,1.23911,2420.8,2420.7,5.59718118]
[1750473676275,2.58728629,2420.8,2420.7,3.2078]
[1750473679973,2.58728629,2420.8,2420.7,3.27627599]
[1750473685588,2.58728629,2420.8,2420.7,0.06847599]
[1750473688579,1.23911,2420.8,2420.7,0.06847599]
[1750473688890,2.57912109,2420.8,2420.7,2.05107599]
[1750473689282,2.57912109,2420.8,2420.7,4.44045717]
[1750473691389,1.34001109,2420.8,2420.7,5.67961717]
[1750473691782,1.23908,2420.9,2420.7,5.67961717]
[1750473692087,1.23908,2420.9,2420.8,3.26421]
[1750473692390,1.23908,2420.9,2420.8,2.0251]
[1750473692688,2.58001009,2420.9,2420.8,2.0251]
[1750473694492,2.58069675,2420.9,2420.8,2.0251]
[1750473694790,2.58069675,2420.9,2420.8,3.69714878]
[1750473696391,2.58069675,2420.9,2420.8,3.76562477]
[1750473696991,2.58069675,2420.9,2420.8,0.06847599]
[1750473698889,3.28349675,2420.9,2420.8,0.06847599]
[1750473707702,3.28349675,2420.9,2420.8,2.01897599]
[1750473707903,3.28448328,2420.9,2420.8,2.01897599]
[1750473708701,1.34260328,2420.9,2420.8,6.46588599]
[1750473709001,1.34260328,2420.9,2420.8,7.13938599]
[1750473709301,1.34260328,2420.9,2420.8,5.90027599]
[1750473709701,1.34260328,2420.9,2420.8,7.13938599]
[1750473711406,2.58166328,2420.9,2420.8,5.90027599]
[1750473711603,1.34260328,2420.9,2420.8,7.13938599]
[1750473712510,1.2389,2421.3,2421.1,1.23895]
[1750473712810,1.3452657,2421.2,2421.1,6.11879878]
[1750473713514,2.5841757,2421.2,2421.1,4.87984878]
[1750473713701,1.3452657,2421.2,2421.1,6.11880878]
[1750473714315,1.3452657,2421.2,2421.1,8.20150878]
[1750473716722,1.23886,2421.3,2421.1,8.20150878]
[1750473717219,1.34414396,2421.2,2421.1,8.20150878]
[1750473717420,1.23886,2421.3,2421.1,8.20150878]
[1750473718022,1.23886,2421.3,2421.1,4.99370878]
[1750473718209,1.23886,2421.3,2421.2,3.2078]
[1750473718415,2.58278206,2421.3,2421.2,3.2078]
[1750473718918,2.58278206,2421.3,2421.2,4.87984878]
[1750473719616,2.58278206,2421.3,2421.2,3.2078]
[1750473721020,1.23901,2421.0,2420.9,3.2078]
[1750473721220,1.67204878,2421.1,2420.8,6.52747599]
[1750473721423,3.00374878,2421.2,2420.8,6.52747599]
[1750473721722,1.23906,2420.9,2420.8,6.52747599]
[1750473723630,1.23906,2420.9,2420.8,7.76658599]
[1750473723928,1.23906,2420.9,2420.8,6.52747599]
[1750473724728,1.23906,2420.9,2420.8,9.73527599]
[1750473724926,1.23906,2420.9,2420.8,11.10217599]
[1750473725430,1.23906,2420.9,2420.8,3.27627599]
[1750473727533,1.23906,2420.9,2420.8,4.58547599]
[1750473729933,1.23906,2420.9,2420.8,3.27627599]
[1750473731430,1.23903,2421.0,2420.8,4.51536599]
[1750473731634,1.23903,2421.0,2420.9,2.38846439]
[1750473733236,1.23899,2421.1,2420.9,2.38846439]
[1750473733437,1.23899,2421.1,2420.9,3.62752439]
[1750473733640,1.23899,2421.1,2420.9,5.65442439]
[1750473733938,0.6528,2421.2,2420.9,4.41536439]
[1750473734237,1.23887,2421.3,2421.1,6.83522439]
[1750473734433,2.58167406,2421.2,2421.1,6.23776439]
[1750473735238,1.34276406,2421.2,2421.1,6.23776439]
[1750473736037,1.34276406,2421.2,2421.1,7.59116439]
[1750473736239,1.34276406,2421.2,2421.1,8.83012439]
[1750473736437,1.23887,2421.3,2421.1,8.83012439]
[1750473736638,0.6559,2421.4,2421.1,7.59116439]
[1750473736639,1.89475,2421.4,2421.1,7.59116439]
[1750473736839,2.58208502,2421.3,2421.2,1.2934]
[1750473740742,2.58208502,2421.3,2421.2,1.36187599]
[1750473741338,1.34322502,2421.3,2421.2,2.60078599]
[1750473741735,1.34322502,2421.3,2421.2,3.27678599]
[1750473743145,1.23881,2421.4,2421.3,1.23881]
[1750473743343,1.23881,2421.4,2421.3,1.3167]
[1750473743645,2.58091701,2421.4,2421.3,1.3167]
[1750473744546,1.23881,2421.4,2421.3,1.3167]
[1750473748243,1.23879,2421.5,2421.3,2.55555]
[1750473748552,1.23874,2421.6,2421.4,1.2388]
[1750473748852,2.57983947,2421.5,2421.3,4.94398439]
[1750473749042,1.23877,2421.5,2421.3,3.70516439]
[1750473749455,1.23881,2421.4,2421.3,3.70516439]
[1750473749951,1.23881,2421.4,2421.3,1.3167]
[1750473755656,0.7072,2421.7,2421.3,3.70516439]
[1750473755858,1.34079376,2421.6,2421.5,1.23873]
[1750473756255,0.7072,2421.7,2421.4,4.4961]
[1750473756451,1.94586,2421.7,2421.5,1.23873]
[1750473757760,0.7072,2421.7,2421.6,1.2387]
[1750473758052,1.2386,2421.8,2421.6,3.29147]
[1750473758257,1.2386,2421.8,2421.7,3.2078]
[1750473758455,1.2386,2421.8,2421.5,8.32241]
[1750473758660,1.23864,2421.8,2421.5,8.32241]
[1750473758853,1.23864,2421.8,2421.6,1.2387]
[1750473769367,1.33701912,2421.7,2421.6,1.2387]
[1750473770171,1.33701912,2421.7,2421.6,1.30717599]
[1750473773474,2.57566912,2421.7,2421.6,1.30717599]
[1750473773675,2.57566912,2421.7,2421.6,0.06847599]
[1750473775174,1.33701912,2421.7,2421.6,0.06847599]
[1750473776179,1.33701912,2421.7,2421.6,1.30718599]
[1750473776978,2.57566912,2421.7,2421.6,0.06847599]
[1750473777378,1.33701912,2421.7,2421.6,0.06847599]
[1750473777574,2.57708723,2421.7,2421.6,0.06847599]
[1750473778777,1.33843723,2421.7,2421.6,1.30718599]
[1750473778982,1.33843723,2421.7,2421.6,2.60738599]
[1750473779381,1.33843723,2421.8,2421.6,2.60738599]
[1750473779581,1.33843723,2421.7,2421.6,2.60738599]
[1750473779778,1.33843723,2421.8,2421.6,2.60738599]
[1750473780874,1.33843723,2421.8,2421.7,1.23866]
[1750473781080,1.33843723,2421.8,2421.7,3.23806]
[1750473784386,1.9482,2422.1,2421.9,1.23853]
[1750473784983,1.2385,2422.0,2421.8,5.00337792]
[1750473785187,1.2385,2422.0,2421.8,2.61617]
[1750473785385,1.2385,2422.0,2421.8,5.82397]
[1750473785589,1.94818,2422.1,2421.9,1.23855]
[1750473786579,1.94818,2422.1,2421.8,5.82397]
[1750473787281,1.94818,2422.1,2421.8,4.5854]
[1750473787487,1.94818,2422.1,2421.9,1.23853]
[1750473789291,0.7097,2422.1,2421.9,1.23853]
[1750473789691,0.7097,2422.1,2421.9,2.65253]
[1750473790291,1.94815,2422.1,2421.9,2.65253]
[1750473790991,0.7097,2422.1,2421.9,2.65253]
[1750473791286,1.94815,2422.1,2421.9,2.65253]
[1750473791892,1.94815,2422.1,2421.9,2.99780271]
[1750473795197,1.94815,2422.1,2421.9,1.58380271]
[1750473796200,1.33232372,2422.0,2421.9,1.58380271]
[1750473798204,1.33232372,2422.0,2421.9,4.79160271]
[1750473800803,1.33232372,2422.0,2421.9,6.16720271]
[1750473803000,1.33232372,2422.0,2421.9,7.83776503]
[1750473809799,1.33232372,2422.0,2421.9,6.46216503]
[1750473820205,1.33232372,2422.0,2421.9,4.79160271]
[1750473822713,1.33232372,2422.0,2421.9,3.55307271]
[1750473822912,1.33232372,2422.0,2421.9,4.79162271]
[1750473829122,1.33232372,2422.0,2421.9,6.1983987]
[1750473830118,1.33232372,2422.0,2421.9,6.12992271]
[1750473831626,0.7097,2422.1,2422.0,1.2385]
[1750473832020,2.04312485,2422.1,2422.0,1.2385]
[1750473832225,0.7097,2422.1,2422.0,1.2385]
[1750473832628,1.94815,2422.1,2421.9,6.12989271]
[1750473832930,1.33338682,2422.0,2421.9,6.12989271]
[1750473836925,2.57188682,2422.0,2421.9,3.2078]
[1750473837127,3.00157367,2422.0,2421.5,3.2078]
[1750473837430,2.90926232,2421.7,2421.5,3.2078]
[1750473837631,2.02341135,2421.6,2421.5,3.2078]
[1750473838532,0.6924,2421.6,2421.5,3.2078]
[1750473838833,0.6924,2421.6,2421.5,4.44656]
[1750473839929,1.93111,2421.6,2421.5,3.2078]
[1750473840135,4.93141981,2421.6,2421.5,3.2078]
[1750473840732,3.26085749,2421.6,2421.5,3.2078]
[1750473841334,2.02214749,2421.6,2421.5,3.2078]
[1750473841634,2.02214749,2421.6,2421.5,4.44656]
[1750473843736,0.6924,2421.6,2421.5,1.23876]
[1750473843933,2.02118611,2421.6,2421.5,1.23876]
[1750473844333,2.02181561,2421.6,2421.5,1.23876]
[1750473844534,0.6924,2421.6,2421.5,1.23876]
[1750473844929,0.6924,2421.6,2421.5,4.44656]
[1750473845338,1.23864,2421.8,2421.6,1.23867]
[1750473845637,2.01256118,2421.7,2421.6,2.90923232]
[1750473851640,3.25121118,2421.7,2421.6,1.67056232]
[1750473851947,3.25121118,2421.7,2421.5,6.18556831]
[1750473852140,1.92205,2421.7,2421.5,6.18556831]
[1750473852442,2.90927232,2421.6,2421.5,3.27627599]
[1750473852838,1.23871,2421.6,2421.5,3.27627599]
[1750473855744,2.56785471,2421.6,2421.5,3.27627599]
[1750473857840,2.56785471,2421.6,2421.5,0.06847599]
[1750473858040,1.23891,2421.2,2421.1,3.2078]
[1750473858246,1.23906,2420.9,2420.8,3.54528451]
[1750473859335,1.23906,2420.9,2420.8,3.6137605]
[1750473861342,1.23898,2421.1,2420.8,13.65958403]
[1750473861740,1.23898,2421.1,2420.9,1.3188]
[1750473861947,1.23901,2421.0,2420.9,1.3188]
[1750473862847,1.23899,2421.1,2420.9,1.3188]
[1750473864045,1.23899,2421.1,2420.9,2.55785]
[1750473864247,0.6912,2421.2,2421.0,2.38874353]
[1750473864547,0.6912,2421.2,2421.1,3.2078]
[1750473864845,0.6912,2421.2,2421.1,4.554]
[1750473865051,1.93011,2421.2,2421.1,4.554]
[1750473869255,0.6912,2421.2,2421.1,5.79296]
[1750473871257,1.23888,2421.3,2421.1,5.79296]
[1750473872058,1.23891,2421.2,2421.1,4.554]
[1750473872557,1.23889,2421.3,2421.1,4.554]
[1750473872757,1.23889,2421.3,2421.1,5.79296]
[1750473874153,1.23889,2421.3,2421.2,1.3568]
[1750473874755,0.6738,2421.4,2421.3,1.23886]
[1750473874956,0.6738,2421.4,2421.2,3.74554353]
[1750473875157,1.23886,2421.3,2421.2,2.38874353]
[1750473875460,1.23886,2421.3,2421.1,4.44675]
[1750473875655,1.23886,2421.3,2421.1,5.87202599]
[1750473876259,1.23886,2421.3,2421.1,4.63307599]
[1750473876451,1.23886,2421.3,2421.1,5.87203599]
[1750473877560,1.23886,2421.3,2421.1,4.63307599]
[1750473878562,1.23886,2421.3,2421.1,5.87203599]
[1750473878862,1.91264,2421.4,2421.2,1.2389]
[1750473879162,1.91264,2421.4,2421.2,2.5352]
[1750473881064,1.23886,2421.3,2421.2,1.2963]
[1750473886470,2.5749089,2421.3,2421.2,1.2963]
[1750473888058,1.23891,2421.2,2421.1,3.27627599]
[1750473888660,1.23891,2421.2,2421.1,4.60657599]
[1750473890864,1.23891,2421.2,2421.1,3.27627599]
[1750473892170,2.57047169,2421.2,2421.1,0.06847599]
[1750473899379,2.57069714,2421.2,2421.1,0.06847599]
[1750473900177,2.57069714,2421.2,2421.1,1.7402939]
[1750473900379,2.57069714,2421.2,2421.1,4.9480939]
[1750473900879,2.57069714,2421.2,2421.1,6.3346939]
[1750473901868,2.57069714,2421.2,2421.1,4.66287599]
[1750473902676,2.57069714,2421.2,2421.1,3.27627599]
[1750473902873,2.57069714,2421.2,2420.2,3.2078]
[1750473902874,1.23937,2420.3,2420.2,3.2078]
[1750473903072,6.21057968,2420.3,2419.6,11.29161791]
[1750473903377,1.23968,2419.7,2419.6,3.2078]
[1750473903566,1.67181791,2419.8,2419.4,0.6741]
[1750473903774,1.23978,2419.5,2419.4,0.6741]
[1750473903977,1.23983,2419.4,2419.3,9.6198]
[1750473904579,1.23981,2419.5,2419.3,9.6198]
[1750473906876,1.88376,2419.6,2419.3,9.6198]
[1750473907278,0.644,2419.6,2419.3,9.6198]
[1750473908086,0.644,2419.6,2419.3,12.01142351]
[1750473908380,0.644,2419.6,2419.3,13.25126351]
[1750473909682,0.644,2419.6,2419.5,1.23978]
[1750473915190,0.644,2419.6,2419.3,9.6178]
[1750473915395,2.59066,2419.6,2419.4,1.23983]
[1750473915791,1.23983,2419.4,2419.3,3.2078]
[1750473916493,2.59066,2419.6,2419.4,1.2398]
[1750473916990,3.2078,2421.0,2419.5,47.603]
[1750473917192,0.6762,2420.9,2420.8,4.44691]
[1750473917504,3.28384,2421.4,2421.0,1.23897]
[1750473917690,3.28384,2421.4,2420.8,5.59942351]
[1750473917691,1.23886,2421.3,2421.2,3.2078]
[1750473917887,3.63048351,2421.3,2421.2,3.2078]
[1750473919187,4.96858351,2421.3,2421.2,3.2078]
[1750473920300,4.96858351,2421.3,2421.2,3.27627599]
[1750473929304,3.63048351,2421.3,2421.2,3.27627599]
[1750473931710,1.23886,2421.3,2421.2,3.27627599]
[1750473944224,2.56625461,2421.3,2421.2,3.27627599]
[1750473957731,2.56625461,2421.3,2421.2,0.06847599]
[1750473966230,2.56625461,2421.3,2421.2,1.44607599]
[1750473967539,2.56625461,2421.3,2421.2,0.06847599]
[1750473975439,1.32739461,2421.3,2421.2,0.06847599]
[1750473975638,2.56625461,2421.3,2421.2,0.06847599]
[1750473981841,1.32739461,2421.3,2421.2,0.06847599]
[1750473982054,1.32739461,2421.3,2421.2,1.30738599]
[1750473982243,3.69245365,2421.7,2421.4,1.23878]
[1750473982445,1.23866,2421.7,2421.5,1.3837]
[1750473983944,1.23866,2421.7,2421.2,0.06847599]
[1750473983945,8.05321716,2421.7,2421.2,0.06847599]
[1750473984248,1.23881,2421.4,2421.2,0.06847599]
[1750473984547,0.6587,2421.3,2421.2,0.06847599]
[1750473987048,0.6587,2421.3,2421.2,1.30738599]
[1750473987548,0.6587,2421.3,2421.2,0.06847599]
[1750473988040,4.28918351,2421.3,2421.2,0.06847599]
[1750473991344,4.28918351,2421.3,2420.6,0.7077]
[1750473991345,14.45832351,2421.3,2420.6,0.7077]
[1750473991548,2.39162351,2420.8,2420.7,3.2078]
[1750473991849,1.23908,2420.9,2420.7,3.2078]
[1750473992045,1.88561,2420.8,2420.7,3.2078]
[1750473992341,0.6465,2420.8,2420.7,3.2078]
[1750473994155,1.97701055,2420.8,2420.7,3.2078]
[1750473995344,1.97701055,2420.8,2420.7,4.51543599]
[1750473995845,1.33051055,2420.8,2420.7,4.51543599]
[1750473996045,3.63067351,2421.0,2420.7,4.51543599]
[1750473996351,2.56917282,2420.9,2420.7,3.94257599]
[1750473996555,1.23906,2420.9,2420.7,5.31157599]
[1750473996748,1.23906,2420.9,2420.7,6.55073599]
[1750473996945,1.33002223,2420.8,2420.7,5.31157599]
[1750473997346,1.23906,2420.9,2420.7,5.31157599]
[1750473997540,1.23906,2420.9,2420.8,1.369]
[1750473997853,8.80062351,2421.5,2420.8,1.369]
[1750473998053,1.23898,2421.1,2420.9,1.23906]
[1750473998252,1.23898,2421.1,2421.0,1.369]
[1750473998657,2.56983696,2421.1,2421.0,1.369]
[1750474000653,2.56983696,2421.1,2420.7,5.18169599]
[1750474000654,3.72248047,2421.1,2420.7,5.18169599]
[1750474000948,1.23911,2420.8,2420.7,3.27627599]
[1750474003455,2.56930638,2420.8,2420.7,3.27627599]
[1750474003652,1.23911,2420.8,2420.7,3.27627599]
[1750474004569,9.44691,2420.8,2420.7,0.06847599]
[1750474004748,9.44691,2420.8,2419.3,9.732]
[1750474004749,3.09805,2420.6,2420.0,3.2078]
[1750474004950,1.23947,2420.1,2420.0,3.2078]
[1750474005457,1.23968,2419.7,2419.6,3.2078]
[1750474006957,1.23966,2419.8,2419.6,3.2078]
[1750474007654,1.23968,2419.7,2419.6,3.2078]